Department Family,Entity,Date,Expense Type,Expense Area,Supplier,SME,Transaction Number,Amount,Description,Expenditure Type
Land Registry,Land Registry,16/03/2016,Stationery National Contracts,Birkenhead Office,Banner Business Services Ltd,Large,1142135,2182.4,Stationery,Administration
Land Registry,Land Registry,16/03/2016,Stationery National Contracts,Central RFS,Banner Business Services Ltd,Large,1142135,68.34,Stationery,Administration
Land Registry,Land Registry,16/03/2016,Stationery National Contracts,Chief Executives Office,Banner Business Services Ltd,Large,1142135,8.52,Stationery,Administration
Land Registry,Land Registry,16/03/2016,Stationery National Contracts,Coventry Office,Banner Business Services Ltd,Large,1142135,569.84,Stationery,Administration
Land Registry,Land Registry,16/03/2016,Stationery National Contracts,Croydon Office,Banner Business Services Ltd,Large,1142135,1431.35,Stationery,Administration
Land Registry,Land Registry,16/03/2016,Stationery National Contracts,Durham Office,Banner Business Services Ltd,Large,1142135,2803.22,Stationery,Administration
Land Registry,Land Registry,16/03/2016,Stationery National Contracts,Finance Group,Banner Business Services Ltd,Large,1142135,67.8,Stationery,Administration
Land Registry,Land Registry,16/03/2016,Stationery National Contracts,Fylde Office,Banner Business Services Ltd,Large,1142135,1281.43,Stationery,Administration
Land Registry,Land Registry,16/03/2016,Stationery National Contracts,Gloucester Office,Banner Business Services Ltd,Large,1142135,1504.05,Stationery,Administration
Land Registry,Land Registry,16/03/2016,Stationery National Contracts,Governance & Policy,Banner Business Services Ltd,Large,1142135,22.63,Stationery,Administration
Land Registry,Land Registry,16/03/2016,Stationery National Contracts,HR Group,Banner Business Services Ltd,Large,1142135,13.16,Stationery,Administration
Land Registry,Land Registry,16/03/2016,Stationery National Contracts,Hull Office,Banner Business Services Ltd,Large,1142135,1931.01,Stationery,Administration
Land Registry,Land Registry,16/03/2016,Stationery National Contracts,Internal Solutions Group,Banner Business Services Ltd,Large,1142135,451.37,Stationery,Administration
Land Registry,Land Registry,16/03/2016,Stationery National Contracts,IS Service Delivery,Banner Business Services Ltd,Large,1142135,10116.08,Stationery,Administration
Land Registry,Land Registry,16/03/2016,Stationery National Contracts,Land Charges,Banner Business Services Ltd,Large,1142135,426.18,Stationery,Administration
Land Registry,Land Registry,16/03/2016,Stationery National Contracts,Leicester Office,Banner Business Services Ltd,Large,1142135,625.66,Stationery,Administration
Land Registry,Land Registry,16/03/2016,Stationery National Contracts,Nottingham Office,Banner Business Services Ltd,Large,1142135,1362.36,Stationery,Administration
Land Registry,Land Registry,16/03/2016,Stationery National Contracts,Peterborough Office,Banner Business Services Ltd,Large,1142135,1441.79,Stationery,Administration
Land Registry,Land Registry,16/03/2016,Stationery National Contracts,Plymouth Office,Banner Business Services Ltd,Large,1142135,961.53,Stationery,Administration
Land Registry,Land Registry,16/03/2016,Stationery National Contracts,Projects and Programme Centre,Banner Business Services Ltd,Large,1142135,30.5,Stationery,Administration
Land Registry,Land Registry,16/03/2016,Stationery National Contracts,Telford Office,Banner Business Services Ltd,Large,1142135,1319.82,Stationery,Administration
Land Registry,Land Registry,16/03/2016,Stationery National Contracts,Wales Office,Banner Business Services Ltd,Large,1142135,2821.19,Stationery,Administration
Land Registry,Land Registry,16/03/2016,Stationery National Contracts,Weymouth Office,Banner Business Services Ltd,Large,1142135,683.34,Stationery,Administration
Land Registry,Land Registry,04/03/2016,Data Network Lines,IS Service Delivery,British Telecommunications Plc,Large,1140766,35721.33,Data Network Lines,Administration
Land Registry,Land Registry,17/03/2016,Electricity,Birkenhead Office,Carillion Services Ltd,Large,1142262,5337.39,Electricity,Administration
Land Registry,Land Registry,17/03/2016,Gas,Birkenhead Office,Carillion Services Ltd,Large,1142262,2032.87,Gas,Administration
Land Registry,Land Registry,17/03/2016,Water,Birkenhead Office,Carillion Services Ltd,Large,1142262,7546.68,Water,Administration
Land Registry,Land Registry,17/03/2016,Electricity,Coventry Office,Carillion Services Ltd,Large,1142262,8034.53,Electricity,Administration
Land Registry,Land Registry,17/03/2016,Gas,Coventry Office,Carillion Services Ltd,Large,1142262,5595.89,Gas,Administration
Land Registry,Land Registry,17/03/2016,Water,Coventry Office,Carillion Services Ltd,Large,1142262,1989.59,Water,Administration
Land Registry,Land Registry,17/03/2016,Electricity,Croydon Office,Carillion Services Ltd,Large,1142262,6527.06,Electricity,Administration
Land Registry,Land Registry,17/03/2016,Gas,Croydon Office,Carillion Services Ltd,Large,1142262,2543.08,Gas,Administration
Land Registry,Land Registry,17/03/2016,Electricity,Durham Office,Carillion Services Ltd,Large,1142262,4477.41,Electricity,Administration
Land Registry,Land Registry,17/03/2016,Gas,Durham Office,Carillion Services Ltd,Large,1142262,2223.84,Gas,Administration
Land Registry,Land Registry,17/03/2016,Electricity,Fylde Office,Carillion Services Ltd,Large,1142262,4653.57,Electricity,Administration
Land Registry,Land Registry,17/03/2016,Gas,Fylde Office,Carillion Services Ltd,Large,1142262,5031.79,Gas,Administration
Land Registry,Land Registry,17/03/2016,Electricity,Gloucester Computer Centre,Carillion Services Ltd,Large,1142262,29939.57,Electricity,Administration
Land Registry,Land Registry,17/03/2016,Gas,Gloucester Computer Centre,Carillion Services Ltd,Large,1142262,548.26,Gas,Administration
Land Registry,Land Registry,17/03/2016,Water,Gloucester Computer Centre,Carillion Services Ltd,Large,1142262,152.53,Water,Administration
Land Registry,Land Registry,17/03/2016,Electricity,Gloucester Office,Carillion Services Ltd,Large,1142262,5012.65,Electricity,Administration
Land Registry,Land Registry,17/03/2016,Gas,Gloucester Office,Carillion Services Ltd,Large,1142262,2598.2,Gas,Administration
Land Registry,Land Registry,17/03/2016,Water,Gloucester Office,Carillion Services Ltd,Large,1142262,1000.16,Water,Administration
Land Registry,Land Registry,17/03/2016,Electricity,Governance & Policy,Carillion Services Ltd,Large,1142262,48375.44,Electricity,Administration
Land Registry,Land Registry,17/03/2016,Gas,Governance & Policy,Carillion Services Ltd,Large,1142262,3457.1,Gas,Administration
Land Registry,Land Registry,17/03/2016,Water,Governance & Policy,Carillion Services Ltd,Large,1142262,476.18,Water,Administration
Land Registry,Land Registry,17/03/2016,Electricity,Hull Office,Carillion Services Ltd,Large,1142262,6697.92,Electricity,Administration
Land Registry,Land Registry,17/03/2016,Gas,Hull Office,Carillion Services Ltd,Large,1142262,3222.22,Gas,Administration
Land Registry,Land Registry,17/03/2016,Water,Hull Office,Carillion Services Ltd,Large,1142262,1316.27,Water,Administration
Land Registry,Land Registry,17/03/2016,Electricity,Leicester Office,Carillion Services Ltd,Large,1142262,5084.74,Electricity,Administration
Land Registry,Land Registry,17/03/2016,Gas,Leicester Office,Carillion Services Ltd,Large,1142262,2575.03,Gas,Administration
Land Registry,Land Registry,17/03/2016,Water,Leicester Office,Carillion Services Ltd,Large,1142262,4381.19,Water,Administration
Land Registry,Land Registry,17/03/2016,Electricity,Nottingham Office,Carillion Services Ltd,Large,1142262,8870.16,Electricity,Administration
Land Registry,Land Registry,17/03/2016,Gas,Nottingham Office,Carillion Services Ltd,Large,1142262,650.99,Gas,Administration
Land Registry,Land Registry,17/03/2016,Water,Nottingham Office,Carillion Services Ltd,Large,1142262,3167.72,Water,Administration
Land Registry,Land Registry,17/03/2016,Electricity,Telford Office,Carillion Services Ltd,Large,1142262,5637.99,Electricity,Administration
Land Registry,Land Registry,17/03/2016,Gas,Telford Office,Carillion Services Ltd,Large,1142262,3529.15,Gas,Administration
Land Registry,Land Registry,17/03/2016,Electricity,Wales Office,Carillion Services Ltd,Large,1142262,5060.82,Electricity,Administration
Land Registry,Land Registry,17/03/2016,Gas,Wales Office,Carillion Services Ltd,Large,1142262,1291.21,Gas,Administration
Land Registry,Land Registry,17/03/2016,Electricity,Weymouth Office,Carillion Services Ltd,Large,1142262,4219.53,Electricity,Administration
Land Registry,Land Registry,17/03/2016,Gas,Weymouth Office,Carillion Services Ltd,Large,1142262,3461.61,Gas,Administration
Land Registry,Land Registry,17/03/2016,Water,Weymouth Office,Carillion Services Ltd,Large,1142262,1272.55,Water,Administration
Land Registry,Land Registry,17/03/2016,Gas,Dir: Finance,Carillion Services Ltd,Large,1142262,1672.57,Gas,Administration
Land Registry,Land Registry,17/03/2016,Facilities - Quoted & Ad Hoc Works,Birkenhead Office,Carillion Services Ltd,Large,1142261,6358.99,Facilities - Quoted & Ad Hoc Works,Administration
Land Registry,Land Registry,17/03/2016,Grounds Maintenance,Birkenhead Office,Carillion Services Ltd,Large,1142261,581,Grounds Maintenance,Administration
Land Registry,Land Registry,17/03/2016,Security Expenses,Birkenhead Office,Carillion Services Ltd,Large,1142261,331.99,Security Expenses,Administration
Land Registry,Land Registry,17/03/2016,Vending Machine Consumables & Repairs,Birkenhead Office,Carillion Services Ltd,Large,1142261,803.88,Vending Machine Consumables & Repairs,Administration
Land Registry,Land Registry,17/03/2016,Waste Disposal,Birkenhead Office,Carillion Services Ltd,Large,1142261,186.75,Waste Disposal,Administration
Land Registry,Land Registry,17/03/2016,"FF&F:Purchases <1,000",Birkenhead Office,Carillion Services Ltd,Large,1142261,1210.22,"Furniture, Fixtures & Fittings: Purchases less than 1,000.00",Administration
Land Registry,Land Registry,17/03/2016,Facilities - Quoted & Ad Hoc Works,Coventry Office,Carillion Services Ltd,Large,1142261,11262.29,Facilities - Quoted & Ad Hoc Works,Administration
Land Registry,Land Registry,17/03/2016,Grounds Maintenance,Coventry Office,Carillion Services Ltd,Large,1142261,881.88,Grounds Maintenance,Administration
Land Registry,Land Registry,17/03/2016,Office Cleaning Expenses,Coventry Office,Carillion Services Ltd,Large,1142261,963,Office Cleaning Expenses,Administration
Land Registry,Land Registry,17/03/2016,Pest Control,Coventry Office,Carillion Services Ltd,Large,1142261,505.9,Pest Control,Administration
Land Registry,Land Registry,17/03/2016,Security Expenses,Coventry Office,Carillion Services Ltd,Large,1142261,7551.48,Security Expenses,Administration
Land Registry,Land Registry,17/03/2016,"FF&F:Purchases <1,000",Coventry Office,Carillion Services Ltd,Large,1142261,733.41,"Furniture, Fixtures & Fittings: Purchases less than 1,000.00",Administration
Land Registry,Land Registry,17/03/2016,Facilities - Quoted & Ad Hoc Works,Croydon Office,Carillion Services Ltd,Large,1142261,775.75,Facilities - Quoted & Ad Hoc Works,Administration
Land Registry,Land Registry,17/03/2016,Security Expenses,Croydon Office,Carillion Services Ltd,Large,1142261,3439.82,Security Expenses,Administration
Land Registry,Land Registry,17/03/2016,Facilities - Quoted & Ad Hoc Works,Durham Office,Carillion Services Ltd,Large,1142261,15696.28,Facilities - Quoted & Ad Hoc Works,Administration
Land Registry,Land Registry,17/03/2016,Grounds Maintenance,Durham Office,Carillion Services Ltd,Large,1142261,1141.25,Grounds Maintenance,Administration
Land Registry,Land Registry,17/03/2016,Security Expenses,Durham Office,Carillion Services Ltd,Large,1142261,6182.02,Security Expenses,Administration
Land Registry,Land Registry,17/03/2016,Waste Disposal,Durham Office,Carillion Services Ltd,Large,1142261,1304.59,Waste Disposal,Administration
Land Registry,Land Registry,17/03/2016,"FF&F:Purchases <1,000",Durham Office,Carillion Services Ltd,Large,1142261,3215.83,"Furniture, Fixtures & Fittings: Purchases less than 1,000.00",Administration
Land Registry,Land Registry,17/03/2016,Facilities - Quoted & Ad Hoc Works,Fylde Office,Carillion Services Ltd,Large,1142261,5876.69,Facilities - Quoted & Ad Hoc Works,Administration
Land Registry,Land Registry,17/03/2016,FM Managed Services,Fylde Office,Carillion Services Ltd,Large,1142261,163.52,Facilities Managed Services,Administration
Land Registry,Land Registry,17/03/2016,Grounds Maintenance,Fylde Office,Carillion Services Ltd,Large,1142261,830,Grounds Maintenance,Administration
Land Registry,Land Registry,17/03/2016,Security Expenses,Fylde Office,Carillion Services Ltd,Large,1142261,1012.72,Security Expenses,Administration
Land Registry,Land Registry,17/03/2016,Waste Disposal,Fylde Office,Carillion Services Ltd,Large,1142261,254.78,Waste Disposal,Administration
Land Registry,Land Registry,17/03/2016,"FF&F:Purchases <1,000",Fylde Office,Carillion Services Ltd,Large,1142261,425.69,"Furniture, Fixtures & Fittings: Purchases less than 1,000.00",Administration
Land Registry,Land Registry,17/03/2016,Facilities - Quoted & Ad Hoc Works,Gloucester Computer Centre,Carillion Services Ltd,Large,1142261,8683.91,Facilities - Quoted & Ad Hoc Works,Administration
Land Registry,Land Registry,17/03/2016,Grounds Maintenance,Gloucester Computer Centre,Carillion Services Ltd,Large,1142261,581,Grounds Maintenance,Administration
Land Registry,Land Registry,17/03/2016,Facilities - Quoted & Ad Hoc Works,Gloucester Office,Carillion Services Ltd,Large,1142261,6759.46,Facilities - Quoted & Ad Hoc Works,Administration
Land Registry,Land Registry,17/03/2016,Grounds Maintenance,Gloucester Office,Carillion Services Ltd,Large,1142261,793.69,Grounds Maintenance,Administration
Land Registry,Land Registry,17/03/2016,Security Expenses,Gloucester Office,Carillion Services Ltd,Large,1142261,181.99,Security Expenses,Administration
Land Registry,Land Registry,17/03/2016,Waste Disposal,Gloucester Office,Carillion Services Ltd,Large,1142261,231.26,Waste Disposal,Administration
Land Registry,Land Registry,17/03/2016,"FF&F:Purchases <1,000",Gloucester Office,Carillion Services Ltd,Large,1142261,589.04,"Furniture, Fixtures & Fittings: Purchases less than 1,000.00",Administration
Land Registry,Land Registry,17/03/2016,Facilities - Quoted & Ad Hoc Works,Governance & Policy,Carillion Services Ltd,Large,1142261,9414.06,Facilities - Quoted & Ad Hoc Works,Administration
Land Registry,Land Registry,17/03/2016,FM Managed Services,Governance & Policy,Carillion Services Ltd,Large,1142261,1433.8,Facilities Managed Services,Administration
Land Registry,Land Registry,17/03/2016,Grounds Maintenance,Governance & Policy,Carillion Services Ltd,Large,1142261,975.25,Grounds Maintenance,Administration
Land Registry,Land Registry,17/03/2016,Security Expenses,Governance & Policy,Carillion Services Ltd,Large,1142261,107,Security Expenses,Administration
Land Registry,Land Registry,17/03/2016,Waste Disposal,Governance & Policy,Carillion Services Ltd,Large,1142261,66.76,Waste Disposal,Administration
Land Registry,Land Registry,17/03/2016,"FF&F:Purchases <1,000",Governance & Policy,Carillion Services Ltd,Large,1142261,2120.83,"Furniture, Fixtures & Fittings: Purchases less than 1,000.00",Administration
Land Registry,Land Registry,17/03/2016,Facilities - Quoted & Ad Hoc Works,Hull Office,Carillion Services Ltd,Large,1142261,28758.26,Facilities - Quoted & Ad Hoc Works,Administration
Land Registry,Land Registry,17/03/2016,Grounds Maintenance,Hull Office,Carillion Services Ltd,Large,1142261,1139.12,Grounds Maintenance,Administration
Land Registry,Land Registry,17/03/2016,Security Expenses,Hull Office,Carillion Services Ltd,Large,1142261,658.72,Security Expenses,Administration
Land Registry,Land Registry,17/03/2016,Waste Disposal,Hull Office,Carillion Services Ltd,Large,1142261,181.56,Waste Disposal,Administration
Land Registry,Land Registry,17/03/2016,"FF&F:Purchases <1,000",Hull Office,Carillion Services Ltd,Large,1142261,293.7,"Furniture, Fixtures & Fittings: Purchases less than 1,000.00",Administration
Land Registry,Land Registry,17/03/2016,Facilities - Quoted & Ad Hoc Works,Leicester Office,Carillion Services Ltd,Large,1142261,4585.49,Facilities - Quoted & Ad Hoc Works,Administration
Land Registry,Land Registry,17/03/2016,Grounds Maintenance,Leicester Office,Carillion Services Ltd,Large,1142261,1462.88,Grounds Maintenance,Administration
Land Registry,Land Registry,17/03/2016,Security Expenses,Leicester Office,Carillion Services Ltd,Large,1142261,1275.83,Security Expenses,Administration
Land Registry,Land Registry,17/03/2016,Waste Disposal,Leicester Office,Carillion Services Ltd,Large,1142261,234.79,Waste Disposal,Administration
Land Registry,Land Registry,17/03/2016,"FF&F:Purchases <1,000",Leicester Office,Carillion Services Ltd,Large,1142261,1962.17,"Furniture, Fixtures & Fittings: Purchases less than 1,000.00",Administration
Land Registry,Land Registry,17/03/2016,Facilities - Quoted & Ad Hoc Works,Nottingham Office,Carillion Services Ltd,Large,1142261,316.29,Facilities - Quoted & Ad Hoc Works,Administration
Land Registry,Land Registry,17/03/2016,Grounds Maintenance,Nottingham Office,Carillion Services Ltd,Large,1142261,23.54,Grounds Maintenance,Administration
Land Registry,Land Registry,17/03/2016,Security Expenses,Nottingham Office,Carillion Services Ltd,Large,1142261,6030.71,Security Expenses,Administration
Land Registry,Land Registry,17/03/2016,Waste Disposal,Nottingham Office,Carillion Services Ltd,Large,1142261,62.25,Waste Disposal,Administration
Land Registry,Land Registry,17/03/2016,"FF&F:Purchases <1,000",Nottingham Office,Carillion Services Ltd,Large,1142261,1380.22,"Furniture, Fixtures & Fittings: Purchases less than 1,000.00",Administration
Land Registry,Land Registry,17/03/2016,Facilities - Quoted & Ad Hoc Works,Peterborough Office,Carillion Services Ltd,Large,1142261,4012.49,Facilities - Quoted & Ad Hoc Works,Administration
Land Registry,Land Registry,17/03/2016,FM Managed Services,Peterborough Office,Carillion Services Ltd,Large,1142261,708.6,Facilities Managed Services,Administration
Land Registry,Land Registry,17/03/2016,"FF&F:Purchases <1,000",Peterborough Office,Carillion Services Ltd,Large,1142261,702.9,"Furniture, Fixtures & Fittings: Purchases less than 1,000.00",Administration
Land Registry,Land Registry,17/03/2016,Facilities - Quoted & Ad Hoc Works,Telford Office,Carillion Services Ltd,Large,1142261,3916.23,Facilities - Quoted & Ad Hoc Works,Administration
Land Registry,Land Registry,17/03/2016,Grounds Maintenance,Telford Office,Carillion Services Ltd,Large,1142261,1146.09,Grounds Maintenance,Administration
Land Registry,Land Registry,17/03/2016,Security Expenses,Telford Office,Carillion Services Ltd,Large,1142261,602.72,Security Expenses,Administration
Land Registry,Land Registry,17/03/2016,"FF&F:Purchases <1,000",Telford Office,Carillion Services Ltd,Large,1142261,593.14,"Furniture, Fixtures & Fittings: Purchases less than 1,000.00",Administration
Land Registry,Land Registry,17/03/2016,Facilities - Quoted & Ad Hoc Works,Wales Office,Carillion Services Ltd,Large,1142261,5240.92,Facilities - Quoted & Ad Hoc Works,Administration
Land Registry,Land Registry,17/03/2016,FM Managed Services,Wales Office,Carillion Services Ltd,Large,1142261,872.05,Facilities Managed Services,Administration
Land Registry,Land Registry,17/03/2016,Grounds Maintenance,Wales Office,Carillion Services Ltd,Large,1142261,705.5,Grounds Maintenance,Administration
Land Registry,Land Registry,17/03/2016,Security Expenses,Wales Office,Carillion Services Ltd,Large,1142261,21.08,Security Expenses,Administration
Land Registry,Land Registry,17/03/2016,"FF&F:Purchases <1,000",Wales Office,Carillion Services Ltd,Large,1142261,541.2,"Furniture, Fixtures & Fittings: Purchases less than 1,000.00",Administration
Land Registry,Land Registry,17/03/2016,Facilities - Quoted & Ad Hoc Works,Weymouth Office,Carillion Services Ltd,Large,1142261,17318.09,Facilities - Quoted & Ad Hoc Works,Administration
Land Registry,Land Registry,17/03/2016,Grounds Maintenance,Weymouth Office,Carillion Services Ltd,Large,1142261,518.75,Grounds Maintenance,Administration
Land Registry,Land Registry,17/03/2016,Security Expenses,Weymouth Office,Carillion Services Ltd,Large,1142261,9829.61,Security Expenses,Administration
Land Registry,Land Registry,17/03/2016,Waste Disposal,Weymouth Office,Carillion Services Ltd,Large,1142261,480.41,Waste Disposal,Administration
Land Registry,Land Registry,17/03/2016,"FF&F:Purchases <1,000",Weymouth Office,Carillion Services Ltd,Large,1142261,21796.49,"Furniture, Fixtures & Fittings: Purchases less than 1,000.00",Administration
Land Registry,Land Registry,17/03/2016,Security Expenses,Dir: Finance,Carillion Services Ltd,Large,1142261,135.36,Security Expenses,Administration
Land Registry,Land Registry,17/03/2016,Facilities - Core Fee,Birkenhead Office,Carillion Services Ltd,Large,1142207,4544.71,Facilities - Core Fee,Administration
Land Registry,Land Registry,17/03/2016,FF&F:Maintenance,Birkenhead Office,Carillion Services Ltd,Large,1142207,23.54,"Furniture, Fixtures & Fittings:Maintenance",Administration
Land Registry,Land Registry,17/03/2016,FM Ext Helpdesk,Birkenhead Office,Carillion Services Ltd,Large,1142207,457.58,Facilities External Helpdesk,Administration
Land Registry,Land Registry,17/03/2016,FM Managed Services,Birkenhead Office,Carillion Services Ltd,Large,1142207,4601.91,Facilities Managed Services,Administration
Land Registry,Land Registry,17/03/2016,Grounds Maintenance,Birkenhead Office,Carillion Services Ltd,Large,1142207,355.36,Grounds Maintenance,Administration
Land Registry,Land Registry,17/03/2016,Office Cleaning Expenses,Birkenhead Office,Carillion Services Ltd,Large,1142207,5309.21,Office Cleaning Expenses,Administration
Land Registry,Land Registry,17/03/2016,Pest Control,Birkenhead Office,Carillion Services Ltd,Large,1142207,40.61,Pest Control,Administration
Land Registry,Land Registry,17/03/2016,Security Expenses,Birkenhead Office,Carillion Services Ltd,Large,1142207,3068.04,Security Expenses,Administration
Land Registry,Land Registry,17/03/2016,Vending Machine Consumables & Repairs,Birkenhead Office,Carillion Services Ltd,Large,1142207,1184.04,Vending Machine Consumables & Repairs,Administration
Land Registry,Land Registry,17/03/2016,Waste Disposal,Birkenhead Office,Carillion Services Ltd,Large,1142207,285.18,Waste Disposal,Administration
Land Registry,Land Registry,17/03/2016,Facilities - Core Fee,Coventry Office,Carillion Services Ltd,Large,1142207,11522.43,Facilities - Core Fee,Administration
Land Registry,Land Registry,17/03/2016,FF&F:Maintenance,Coventry Office,Carillion Services Ltd,Large,1142207,23.54,"Furniture, Fixtures & Fittings:Maintenance",Administration
Land Registry,Land Registry,17/03/2016,FM Ext Helpdesk,Coventry Office,Carillion Services Ltd,Large,1142207,933.5,Facilities External Helpdesk,Administration
Land Registry,Land Registry,17/03/2016,FM Managed Services,Coventry Office,Carillion Services Ltd,Large,1142207,7406.02,Facilities Managed Services,Administration
Land Registry,Land Registry,17/03/2016,Grounds Maintenance,Coventry Office,Carillion Services Ltd,Large,1142207,672.52,Grounds Maintenance,Administration
Land Registry,Land Registry,17/03/2016,Office Cleaning Expenses,Coventry Office,Carillion Services Ltd,Large,1142207,5427.82,Office Cleaning Expenses,Administration
Land Registry,Land Registry,17/03/2016,Pest Control,Coventry Office,Carillion Services Ltd,Large,1142207,51.76,Pest Control,Administration
Land Registry,Land Registry,17/03/2016,Security Expenses,Coventry Office,Carillion Services Ltd,Large,1142207,6692.36,Security Expenses,Administration
Land Registry,Land Registry,17/03/2016,Vending Machine Consumables & Repairs,Coventry Office,Carillion Services Ltd,Large,1142207,173.66,Vending Machine Consumables & Repairs,Administration
Land Registry,Land Registry,17/03/2016,Waste Disposal,Coventry Office,Carillion Services Ltd,Large,1142207,238.36,Waste Disposal,Administration
Land Registry,Land Registry,17/03/2016,Facilities - Core Fee,Croydon Office,Carillion Services Ltd,Large,1142207,7371.71,Facilities - Core Fee,Administration
Land Registry,Land Registry,17/03/2016,FF&F:Maintenance,Croydon Office,Carillion Services Ltd,Large,1142207,23.54,"Furniture, Fixtures & Fittings:Maintenance",Administration
Land Registry,Land Registry,17/03/2016,FM Ext Helpdesk,Croydon Office,Carillion Services Ltd,Large,1142207,556.67,Facilities External Helpdesk,Administration
Land Registry,Land Registry,17/03/2016,FM Managed Services,Croydon Office,Carillion Services Ltd,Large,1142207,6165.11,Facilities Managed Services,Administration
Land Registry,Land Registry,17/03/2016,Grounds Maintenance,Croydon Office,Carillion Services Ltd,Large,1142207,67,Grounds Maintenance,Administration
Land Registry,Land Registry,17/03/2016,Office Cleaning Expenses,Croydon Office,Carillion Services Ltd,Large,1142207,4026.55,Office Cleaning Expenses,Administration
Land Registry,Land Registry,17/03/2016,Pest Control,Croydon Office,Carillion Services Ltd,Large,1142207,38.99,Pest Control,Administration
Land Registry,Land Registry,17/03/2016,Security Expenses,Croydon Office,Carillion Services Ltd,Large,1142207,8505.1,Security Expenses,Administration
Land Registry,Land Registry,17/03/2016,Vending Machine Consumables & Repairs,Croydon Office,Carillion Services Ltd,Large,1142207,220.48,Vending Machine Consumables & Repairs,Administration
Land Registry,Land Registry,17/03/2016,Waste Disposal,Croydon Office,Carillion Services Ltd,Large,1142207,208.8,Waste Disposal,Administration
Land Registry,Land Registry,17/03/2016,Facilities - Core Fee,Durham Office,Carillion Services Ltd,Large,1142207,5601.03,Facilities - Core Fee,Administration
Land Registry,Land Registry,17/03/2016,FF&F:Maintenance,Durham Office,Carillion Services Ltd,Large,1142207,23.54,"Furniture, Fixtures & Fittings:Maintenance",Administration
Land Registry,Land Registry,17/03/2016,FM Ext Helpdesk,Durham Office,Carillion Services Ltd,Large,1142207,575.54,Facilities External Helpdesk,Administration
Land Registry,Land Registry,17/03/2016,FM Managed Services,Durham Office,Carillion Services Ltd,Large,1142207,5902.51,Facilities Managed Services,Administration
Land Registry,Land Registry,17/03/2016,Grounds Maintenance,Durham Office,Carillion Services Ltd,Large,1142207,832.33,Grounds Maintenance,Administration
Land Registry,Land Registry,17/03/2016,Office Cleaning Expenses,Durham Office,Carillion Services Ltd,Large,1142207,6166.96,Office Cleaning Expenses,Administration
Land Registry,Land Registry,17/03/2016,Pest Control,Durham Office,Carillion Services Ltd,Large,1142207,47.5,Pest Control,Administration
Land Registry,Land Registry,17/03/2016,Security Expenses,Durham Office,Carillion Services Ltd,Large,1142207,2487.09,Security Expenses,Administration
Land Registry,Land Registry,17/03/2016,Vending Machine Consumables & Repairs,Durham Office,Carillion Services Ltd,Large,1142207,43.42,Vending Machine Consumables & Repairs,Administration
Land Registry,Land Registry,17/03/2016,Waste Disposal,Durham Office,Carillion Services Ltd,Large,1142207,332,Waste Disposal,Administration
Land Registry,Land Registry,17/03/2016,Facilities - Core Fee,Fylde Office,Carillion Services Ltd,Large,1142207,3058.45,Facilities - Core Fee,Administration
Land Registry,Land Registry,17/03/2016,FF&F:Maintenance,Fylde Office,Carillion Services Ltd,Large,1142207,23.54,"Furniture, Fixtures & Fittings:Maintenance",Administration
Land Registry,Land Registry,17/03/2016,FM Ext Helpdesk,Fylde Office,Carillion Services Ltd,Large,1142207,398.76,Facilities External Helpdesk,Administration
Land Registry,Land Registry,17/03/2016,FM Managed Services,Fylde Office,Carillion Services Ltd,Large,1142207,5790.91,Facilities Managed Services,Administration
Land Registry,Land Registry,17/03/2016,Grounds Maintenance,Fylde Office,Carillion Services Ltd,Large,1142207,1554.42,Grounds Maintenance,Administration
Land Registry,Land Registry,17/03/2016,Office Cleaning Expenses,Fylde Office,Carillion Services Ltd,Large,1142207,3640.35,Office Cleaning Expenses,Administration
Land Registry,Land Registry,17/03/2016,Pest Control,Fylde Office,Carillion Services Ltd,Large,1142207,38.39,Pest Control,Administration
Land Registry,Land Registry,17/03/2016,Security Expenses,Fylde Office,Carillion Services Ltd,Large,1142207,2252.72,Security Expenses,Administration
Land Registry,Land Registry,17/03/2016,Vending Machine Consumables & Repairs,Fylde Office,Carillion Services Ltd,Large,1142207,154.93,Vending Machine Consumables & Repairs,Administration
Land Registry,Land Registry,17/03/2016,Waste Disposal,Fylde Office,Carillion Services Ltd,Large,1142207,255.56,Waste Disposal,Administration
Land Registry,Land Registry,17/03/2016,Facilities - Core Fee,Gloucester Computer Centre,Carillion Services Ltd,Large,1142207,8505.82,Facilities - Core Fee,Administration
Land Registry,Land Registry,17/03/2016,FF&F:Maintenance,Gloucester Computer Centre,Carillion Services Ltd,Large,1142207,23.54,"Furniture, Fixtures & Fittings:Maintenance",Administration
Land Registry,Land Registry,17/03/2016,FM Ext Helpdesk,Gloucester Computer Centre,Carillion Services Ltd,Large,1142207,539.3,Facilities External Helpdesk,Administration
Land Registry,Land Registry,17/03/2016,FM Managed Services,Gloucester Computer Centre,Carillion Services Ltd,Large,1142207,2722.31,Facilities Managed Services,Administration
Land Registry,Land Registry,17/03/2016,Grounds Maintenance,Gloucester Computer Centre,Carillion Services Ltd,Large,1142207,94.07,Grounds Maintenance,Administration
Land Registry,Land Registry,17/03/2016,Office Cleaning Expenses,Gloucester Computer Centre,Carillion Services Ltd,Large,1142207,529.72,Office Cleaning Expenses,Administration
Land Registry,Land Registry,17/03/2016,Pest Control,Gloucester Computer Centre,Carillion Services Ltd,Large,1142207,27.75,Pest Control,Administration
Land Registry,Land Registry,17/03/2016,Security Expenses,Gloucester Computer Centre,Carillion Services Ltd,Large,1142207,7193.99,Security Expenses,Administration
Land Registry,Land Registry,17/03/2016,Vending Machine Consumables & Repairs,Gloucester Computer Centre,Carillion Services Ltd,Large,1142207,19.75,Vending Machine Consumables & Repairs,Administration
Land Registry,Land Registry,17/03/2016,Waste Disposal,Gloucester Computer Centre,Carillion Services Ltd,Large,1142207,45.38,Waste Disposal,Administration
Land Registry,Land Registry,17/03/2016,Facilities - Core Fee,Gloucester Office,Carillion Services Ltd,Large,1142207,2581.61,Facilities - Core Fee,Administration
Land Registry,Land Registry,17/03/2016,FF&F:Maintenance,Gloucester Office,Carillion Services Ltd,Large,1142207,23.54,"Furniture, Fixtures & Fittings:Maintenance",Administration
Land Registry,Land Registry,17/03/2016,FM Ext Helpdesk,Gloucester Office,Carillion Services Ltd,Large,1142207,576.45,Facilities External Helpdesk,Administration
Land Registry,Land Registry,17/03/2016,FM Managed Services,Gloucester Office,Carillion Services Ltd,Large,1142207,3140.3,Facilities Managed Services,Administration
Land Registry,Land Registry,17/03/2016,Grounds Maintenance,Gloucester Office,Carillion Services Ltd,Large,1142207,636.14,Grounds Maintenance,Administration
Land Registry,Land Registry,17/03/2016,Office Cleaning Expenses,Gloucester Office,Carillion Services Ltd,Large,1142207,6884.39,Office Cleaning Expenses,Administration
Land Registry,Land Registry,17/03/2016,Pest Control,Gloucester Office,Carillion Services Ltd,Large,1142207,45.29,Pest Control,Administration
Land Registry,Land Registry,17/03/2016,Security Expenses,Gloucester Office,Carillion Services Ltd,Large,1142207,9157.74,Security Expenses,Administration
Land Registry,Land Registry,17/03/2016,Vending Machine Consumables & Repairs,Gloucester Office,Carillion Services Ltd,Large,1142207,141.99,Vending Machine Consumables & Repairs,Administration
Land Registry,Land Registry,17/03/2016,Waste Disposal,Gloucester Office,Carillion Services Ltd,Large,1142207,247.47,Waste Disposal,Administration
Land Registry,Land Registry,17/03/2016,Facilities - Core Fee,Governance & Policy,Carillion Services Ltd,Large,1142207,17770.84,Facilities - Core Fee,Administration
Land Registry,Land Registry,17/03/2016,FF&F:Maintenance,Governance & Policy,Carillion Services Ltd,Large,1142207,70.62,"Furniture, Fixtures & Fittings:Maintenance",Administration
Land Registry,Land Registry,17/03/2016,FM Ext Helpdesk,Governance & Policy,Carillion Services Ltd,Large,1142207,1474.52,Facilities External Helpdesk,Administration
Land Registry,Land Registry,17/03/2016,FM Managed Services,Governance & Policy,Carillion Services Ltd,Large,1142207,13789.17,Facilities Managed Services,Administration
Land Registry,Land Registry,17/03/2016,Grounds Maintenance,Governance & Policy,Carillion Services Ltd,Large,1142207,1520.5,Grounds Maintenance,Administration
Land Registry,Land Registry,17/03/2016,Office Cleaning Expenses,Governance & Policy,Carillion Services Ltd,Large,1142207,8668.11,Office Cleaning Expenses,Administration
Land Registry,Land Registry,17/03/2016,Pest Control,Governance & Policy,Carillion Services Ltd,Large,1142207,139.7,Pest Control,Administration
Land Registry,Land Registry,17/03/2016,Security Expenses,Governance & Policy,Carillion Services Ltd,Large,1142207,18603.16,Security Expenses,Administration
Land Registry,Land Registry,17/03/2016,Vending Machine Consumables & Repairs,Governance & Policy,Carillion Services Ltd,Large,1142207,214.7,Vending Machine Consumables & Repairs,Administration
Land Registry,Land Registry,17/03/2016,Waste Disposal,Governance & Policy,Carillion Services Ltd,Large,1142207,653.15,Waste Disposal,Administration
Land Registry,Land Registry,17/03/2016,Facilities - Core Fee,Hull Office,Carillion Services Ltd,Large,1142207,5732.57,Facilities - Core Fee,Administration
Land Registry,Land Registry,17/03/2016,FF&F:Maintenance,Hull Office,Carillion Services Ltd,Large,1142207,23.54,"Furniture, Fixtures & Fittings:Maintenance",Administration
Land Registry,Land Registry,17/03/2016,FM Ext Helpdesk,Hull Office,Carillion Services Ltd,Large,1142207,448.73,Facilities External Helpdesk,Administration
Land Registry,Land Registry,17/03/2016,FM Managed Services,Hull Office,Carillion Services Ltd,Large,1142207,5614.68,Facilities Managed Services,Administration
Land Registry,Land Registry,17/03/2016,Grounds Maintenance,Hull Office,Carillion Services Ltd,Large,1142207,636.14,Grounds Maintenance,Administration
Land Registry,Land Registry,17/03/2016,Office Cleaning Expenses,Hull Office,Carillion Services Ltd,Large,1142207,3855.48,Office Cleaning Expenses,Administration
Land Registry,Land Registry,17/03/2016,Pest Control,Hull Office,Carillion Services Ltd,Large,1142207,48.52,Pest Control,Administration
Land Registry,Land Registry,17/03/2016,Security Expenses,Hull Office,Carillion Services Ltd,Large,1142207,2816.46,Security Expenses,Administration
Land Registry,Land Registry,17/03/2016,Vending Machine Consumables & Repairs,Hull Office,Carillion Services Ltd,Large,1142207,341.54,Vending Machine Consumables & Repairs,Administration
Land Registry,Land Registry,17/03/2016,Waste Disposal,Hull Office,Carillion Services Ltd,Large,1142207,186.68,Waste Disposal,Administration
Land Registry,Land Registry,17/03/2016,Facilities - Core Fee,Leicester Office,Carillion Services Ltd,Large,1142207,8809.67,Facilities - Core Fee,Administration
Land Registry,Land Registry,17/03/2016,FF&F:Maintenance,Leicester Office,Carillion Services Ltd,Large,1142207,47.08,"Furniture, Fixtures & Fittings:Maintenance",Administration
Land Registry,Land Registry,17/03/2016,FM Ext Helpdesk,Leicester Office,Carillion Services Ltd,Large,1142207,502.87,Facilities External Helpdesk,Administration
Land Registry,Land Registry,17/03/2016,FM Managed Services,Leicester Office,Carillion Services Ltd,Large,1142207,6539.67,Facilities Managed Services,Administration
Land Registry,Land Registry,17/03/2016,Grounds Maintenance,Leicester Office,Carillion Services Ltd,Large,1142207,200.91,Grounds Maintenance,Administration
Land Registry,Land Registry,17/03/2016,Office Cleaning Expenses,Leicester Office,Carillion Services Ltd,Large,1142207,3319.5,Office Cleaning Expenses,Administration
Land Registry,Land Registry,17/03/2016,Pest Control,Leicester Office,Carillion Services Ltd,Large,1142207,38.39,Pest Control,Administration
Land Registry,Land Registry,17/03/2016,Security Expenses,Leicester Office,Carillion Services Ltd,Large,1142207,2538.48,Security Expenses,Administration
Land Registry,Land Registry,17/03/2016,Vending Machine Consumables & Repairs,Leicester Office,Carillion Services Ltd,Large,1142207,114.24,Vending Machine Consumables & Repairs,Administration
Land Registry,Land Registry,17/03/2016,Waste Disposal,Leicester Office,Carillion Services Ltd,Large,1142207,270.03,Waste Disposal,Administration
Land Registry,Land Registry,17/03/2016,Facilities - Core Fee,Nottingham Office,Carillion Services Ltd,Large,1142207,5349.03,Facilities - Core Fee,Administration
Land Registry,Land Registry,17/03/2016,FF&F:Maintenance,Nottingham Office,Carillion Services Ltd,Large,1142207,23.54,"Furniture, Fixtures & Fittings:Maintenance",Administration
Land Registry,Land Registry,17/03/2016,FM Ext Helpdesk,Nottingham Office,Carillion Services Ltd,Large,1142207,1788.72,Facilities External Helpdesk,Administration
Land Registry,Land Registry,17/03/2016,FM Managed Services,Nottingham Office,Carillion Services Ltd,Large,1142207,10927.96,Facilities Managed Services,Administration
Land Registry,Land Registry,17/03/2016,Grounds Maintenance,Nottingham Office,Carillion Services Ltd,Large,1142207,322.52,Grounds Maintenance,Administration
Land Registry,Land Registry,17/03/2016,Office Cleaning Expenses,Nottingham Office,Carillion Services Ltd,Large,1142207,5829.74,Office Cleaning Expenses,Administration
Land Registry,Land Registry,17/03/2016,Pest Control,Nottingham Office,Carillion Services Ltd,Large,1142207,131.1,Pest Control,Administration
Land Registry,Land Registry,17/03/2016,Security Expenses,Nottingham Office,Carillion Services Ltd,Large,1142207,3228.6,Security Expenses,Administration
Land Registry,Land Registry,17/03/2016,Vending Machine Consumables & Repairs,Nottingham Office,Carillion Services Ltd,Large,1142207,127.57,Vending Machine Consumables & Repairs,Administration
Land Registry,Land Registry,17/03/2016,Waste Disposal,Nottingham Office,Carillion Services Ltd,Large,1142207,332,Waste Disposal,Administration
Land Registry,Land Registry,17/03/2016,Facilities - Core Fee,Peterborough Office,Carillion Services Ltd,Large,1142207,2487.25,Facilities - Core Fee,Administration
Land Registry,Land Registry,17/03/2016,FF&F:Maintenance,Peterborough Office,Carillion Services Ltd,Large,1142207,23.55,"Furniture, Fixtures & Fittings:Maintenance",Administration
Land Registry,Land Registry,17/03/2016,FM Ext Helpdesk,Peterborough Office,Carillion Services Ltd,Large,1142207,587.52,Facilities External Helpdesk,Administration
Land Registry,Land Registry,17/03/2016,FM Managed Services,Peterborough Office,Carillion Services Ltd,Large,1142207,5413.85,Facilities Managed Services,Administration
Land Registry,Land Registry,17/03/2016,Office Cleaning Expenses,Peterborough Office,Carillion Services Ltd,Large,1142207,827.71,Office Cleaning Expenses,Administration
Land Registry,Land Registry,17/03/2016,Pest Control,Peterborough Office,Carillion Services Ltd,Large,1142207,39.93,Pest Control,Administration
Land Registry,Land Registry,17/03/2016,Facilities - Core Fee,RFS4 - Coventry,Carillion Services Ltd,Large,1142207,23.41,Facilities - Core Fee,Administration
Land Registry,Land Registry,17/03/2016,FM Ext Helpdesk,RFS4 - Coventry,Carillion Services Ltd,Large,1142207,7.76,Facilities External Helpdesk,Administration
Land Registry,Land Registry,17/03/2016,FM Managed Services,RFS4 - Coventry,Carillion Services Ltd,Large,1142207,24.99,Facilities Managed Services,Administration
Land Registry,Land Registry,17/03/2016,Pest Control,RFS4 - Coventry,Carillion Services Ltd,Large,1142207,51.76,Pest Control,Administration
Land Registry,Land Registry,17/03/2016,Facilities - Core Fee,Telford Office,Carillion Services Ltd,Large,1142207,5478.96,Facilities - Core Fee,Administration
Land Registry,Land Registry,17/03/2016,FF&F:Maintenance,Telford Office,Carillion Services Ltd,Large,1142207,23.54,"Furniture, Fixtures & Fittings:Maintenance",Administration
Land Registry,Land Registry,17/03/2016,FM Ext Helpdesk,Telford Office,Carillion Services Ltd,Large,1142207,608.12,Facilities External Helpdesk,Administration
Land Registry,Land Registry,17/03/2016,FM Managed Services,Telford Office,Carillion Services Ltd,Large,1142207,6087.72,Facilities Managed Services,Administration
Land Registry,Land Registry,17/03/2016,Grounds Maintenance,Telford Office,Carillion Services Ltd,Large,1142207,1096.26,Grounds Maintenance,Administration
Land Registry,Land Registry,17/03/2016,Office Cleaning Expenses,Telford Office,Carillion Services Ltd,Large,1142207,6005.76,Office Cleaning Expenses,Administration
Land Registry,Land Registry,17/03/2016,Pest Control,Telford Office,Carillion Services Ltd,Large,1142207,43.59,Pest Control,Administration
Land Registry,Land Registry,17/03/2016,Security Expenses,Telford Office,Carillion Services Ltd,Large,1142207,2770.19,Security Expenses,Administration
Land Registry,Land Registry,17/03/2016,Vending Machine Consumables & Repairs,Telford Office,Carillion Services Ltd,Large,1142207,195.03,Vending Machine Consumables & Repairs,Administration
Land Registry,Land Registry,17/03/2016,Waste Disposal,Telford Office,Carillion Services Ltd,Large,1142207,238.79,Waste Disposal,Administration
Land Registry,Land Registry,17/03/2016,Facilities - Core Fee,Wales Office,Carillion Services Ltd,Large,1142207,4436.39,Facilities - Core Fee,Administration
Land Registry,Land Registry,17/03/2016,FF&F:Maintenance,Wales Office,Carillion Services Ltd,Large,1142207,47.08,"Furniture, Fixtures & Fittings:Maintenance",Administration
Land Registry,Land Registry,17/03/2016,FM Ext Helpdesk,Wales Office,Carillion Services Ltd,Large,1142207,439.5,Facilities External Helpdesk,Administration
Land Registry,Land Registry,17/03/2016,FM Managed Services,Wales Office,Carillion Services Ltd,Large,1142207,5657.53,Facilities Managed Services,Administration
Land Registry,Land Registry,17/03/2016,Grounds Maintenance,Wales Office,Carillion Services Ltd,Large,1142207,471.95,Grounds Maintenance,Administration
Land Registry,Land Registry,17/03/2016,Office Cleaning Expenses,Wales Office,Carillion Services Ltd,Large,1142207,4873.22,Office Cleaning Expenses,Administration
Land Registry,Land Registry,17/03/2016,Pest Control,Wales Office,Carillion Services Ltd,Large,1142207,57.55,Pest Control,Administration
Land Registry,Land Registry,17/03/2016,Security Expenses,Wales Office,Carillion Services Ltd,Large,1142207,2510.62,Security Expenses,Administration
Land Registry,Land Registry,17/03/2016,Vending Machine Consumables & Repairs,Wales Office,Carillion Services Ltd,Large,1142207,191.2,Vending Machine Consumables & Repairs,Administration
Land Registry,Land Registry,17/03/2016,Waste Disposal,Wales Office,Carillion Services Ltd,Large,1142207,205.84,Waste Disposal,Administration
Land Registry,Land Registry,17/03/2016,Facilities - Core Fee,Weymouth Office,Carillion Services Ltd,Large,1142207,1568.57,Facilities - Core Fee,Administration
Land Registry,Land Registry,17/03/2016,FF&F:Maintenance,Weymouth Office,Carillion Services Ltd,Large,1142207,23.54,"Furniture, Fixtures & Fittings:Maintenance",Administration
Land Registry,Land Registry,17/03/2016,FM Ext Helpdesk,Weymouth Office,Carillion Services Ltd,Large,1142207,357.28,Facilities External Helpdesk,Administration
Land Registry,Land Registry,17/03/2016,FM Managed Services,Weymouth Office,Carillion Services Ltd,Large,1142207,8554.11,Facilities Managed Services,Administration
Land Registry,Land Registry,17/03/2016,Grounds Maintenance,Weymouth Office,Carillion Services Ltd,Large,1142207,733.21,Grounds Maintenance,Administration
Land Registry,Land Registry,17/03/2016,Office Cleaning Expenses,Weymouth Office,Carillion Services Ltd,Large,1142207,4306.07,Office Cleaning Expenses,Administration
Land Registry,Land Registry,17/03/2016,Pest Control,Weymouth Office,Carillion Services Ltd,Large,1142207,40.61,Pest Control,Administration
Land Registry,Land Registry,17/03/2016,Security Expenses,Weymouth Office,Carillion Services Ltd,Large,1142207,2772.74,Security Expenses,Administration
Land Registry,Land Registry,17/03/2016,Vending Machine Consumables & Repairs,Weymouth Office,Carillion Services Ltd,Large,1142207,110.67,Vending Machine Consumables & Repairs,Administration
Land Registry,Land Registry,17/03/2016,Waste Disposal,Weymouth Office,Carillion Services Ltd,Large,1142207,169.72,Waste Disposal,Administration
Land Registry,Land Registry,31/03/2016,Facilities - Quoted & Ad Hoc Works,Central Facilities Management Team,Carillion Services Ltd,Large,1143360,35709.28,Facilities - Quoted & Ad Hoc Works,Administration
Land Registry,Land Registry,21/03/2016,Computer Equipment Maintenance,IS Service Delivery,CGI IT UK Limited,Large,1142553,68833.33,Computer Equipment Maintenance,Administration
Land Registry,Land Registry,29/03/2016,Rates Payable,Wales Office,City & County of Swansea,Large,1142546,17739,Rates Payable,Administration
Land Registry,Land Registry,21/03/2016,Service Charges,Peterborough Office,Commercial Estates Group Ltd,SME,1141231,24350.21,Service Charges,Administration
Land Registry,Land Registry,21/03/2016,Rent Payable,Peterborough Office,Commercial Estates Group Ltd,SME,1141232,59221.8,Rent Payable,Administration
Land Registry,Land Registry,31/03/2016,Rates Payable,Croydon Office,Croydon Council,Large,1142545,29469,Rates Payable,Administration
Land Registry,Land Registry,21/03/2016,Fixed Asset Interface Account,Balance Sheet,Dell Corporation Ltd,Large,1142105,36602.4,Fixed Assets,Administration
Land Registry,Land Registry,21/03/2016,Computer Equipment Maintenance,IS Service Delivery,Dell Corporation Ltd,Large,1142105,849,Computer Equipment Maintenance,Administration
Land Registry,Land Registry,18/03/2016,Next Generation HR Professional Services,HR Operations,Department for Business Innovation & Skills,Large,1142293,222660,Next Generation HR Professional Services,Administration
Land Registry,Land Registry,21/03/2016,Rent Payable,Nottingham Office,Dtz Debenham Tie Leung Ltd,Large,1141233,183577.5,Rent Payable,Administration
Land Registry,Land Registry,29/03/2016,Rates Payable,Durham Office,Durham County Council,Large,1142132,28826,Rates Payable,Administration
Land Registry,Land Registry,03/03/2016,Transport Hire of Cars and Vans,Central Facilities Management Team,Enterprise Rent-A-Car (UK) Ltd,Large,1140761,20435.75,Transport Hire of Cars and Vans,Administration
Land Registry,Land Registry,03/03/2016,Transport Fuel,Central Facilities Management Team,Enterprise Rent-A-Car (UK) Ltd,Large,1140761,2217.12,Transport Fuel,Administration
Land Registry,Land Registry,17/03/2016,Professional Services,Dir: (Statutory) Digital Services,Epimorphics Ltd,SME,1142255,48600,Professional Services,Administration
Land Registry,Land Registry,23/03/2016,Professional Subscriptions,International Unit,EuroGeographics aisbi,SME,1142973,28384.73,Professional Subscriptions,Administration
Land Registry,Land Registry,08/03/2016,"FF&F:Purchases <1,000",Central Facilities Management Team,Flexiform Business Furniture Ltd,SME,1140891,32744.98,"Furniture, Fixtures & Fittings: Purchases less than 1,000.00",Administration
Land Registry,Land Registry,29/03/2016,Rates Payable,Fylde Office,Fylde Borough Council,Large,1140762,16771.5,Rates Payable,Administration
Land Registry,Land Registry,16/03/2016,Professional Services,IS Service Delivery,Gartner UK Limited,Large,1141772,29912,Professional Services,Administration
Land Registry,Land Registry,21/03/2016,Rent Payable,Governance & Policy,GBR Phoenix Beard Property Consultants,Large,1141150,29550,Rent Payable,Administration
Land Registry,Land Registry,21/03/2016,Rent Payable,RFS11 - Plymouth,GBR Phoenix Beard Property Consultants,Large,1141149,38400,Rent Payable,Administration
Land Registry,Land Registry,29/03/2016,Rates Payable,Gloucester Office,Gloucester City Council,Large,1142548,24723.5,Rates Payable,Administration
Land Registry,Land Registry,03/03/2016,Professional Services,HR Operations,Health Management Ltd,Large,1140382,16615.44,Professional Services,Administration
Land Registry,Land Registry,03/03/2016,National Medical Expenses,HR Operations,Health Management Ltd,Large,1140382,25070.78,National Medical Expenses,Administration
Land Registry,Land Registry,30/03/2016,Independent Adjudicators's Office Costs,Independent Adjudicator,HM Courts & Tribunals Service,Large,1142670,706286.5,Independent Adjudicators's Office Costs,Administration
Land Registry,Land Registry,09/03/2016,Assets in the Course of Construction,Balance Sheet,Insight Direct (UK) Ltd,Large,1140745,468217.15,Assets in the Course of Construction,Administration
Land Registry,Land Registry,09/03/2016,Computer Equipment Non HP Licences,Dir: Information Systems,Insight Direct (UK) Ltd,Large,1140745,1063894.31,Computer Equipment Non HP Licences,Administration
Land Registry,Land Registry,23/03/2016,Computer Equipment Maintenance,IS Service Delivery,Interchip AG,SME,1141805,80000.29,Computer Equipment Maintenance,Administration
Land Registry,Land Registry,23/03/2016,Data Network Lines,IS Service Delivery,Interoute Vtesse Ltd,Large,1142766,61250,Data Network Lines,Administration
Land Registry,Land Registry,16/03/2016,Employment Agency Staff Costs,Dir: (Statutory) Digital Services,Kainos Software Ltd,Large,1141230,37536,Employment Agency Staff Costs,Administration
Land Registry,Land Registry,30/03/2016,Rent Payable,Hull Office,Kingston Upon Hull City Council,Large,1143233,12500,Rent Payable,Administration
Land Registry,Land Registry,30/03/2016,Professional Services,Finance Director,Lane Clark & Peacock LLP,Large,1143139,60535,Professional Services,Administration
Land Registry,Land Registry,29/03/2016,Rates Payable,Leicester Office,Leicester City Council,Large,1141494,18633,Rates Payable,Administration
Land Registry,Land Registry,21/03/2016,Rent Payable,Gloucester Office,Metrus Property Advisors Ltd,Large,1104253,211500,Rent Payable,Administration
Land Registry,Land Registry,10/03/2016,Legal  Expenses,Director of Legal Services,Ministry of Justice,Large,1141250,37500,Legal  Expenses,Administration
Land Registry,Land Registry,29/03/2016,Rates Payable,Nottingham Office,Nottingham City Council,Large,1142549,24850,Rates Payable,Administration
Land Registry,Land Registry,30/03/2016,Computer Equipment Maintenance,IS Service Delivery,Pervasive Networks Ltd,Large,1143138,1135.46,Computer Equipment Maintenance,Administration
Land Registry,Land Registry,30/03/2016,Computer Equipment Non HP Licences,IS Service Delivery,Pervasive Networks Ltd,Large,1143138,57630.25,Computer Equipment Non HP Licences,Administration
Land Registry,Land Registry,29/03/2016,Rates Payable,Peterborough Office,Peterborough City Council,Large,1141971,11178,Rates Payable,Administration
Land Registry,Land Registry,08/03/2016,Software as a Service (Cloud),Dir: Information Systems,Phoenix Software Ltd,SME,1139930,59850,Cloud Computing Services,Administration
Land Registry,Land Registry,08/03/2016,FF&F:Hire (Central Print Only),IS Service Delivery,Pitney Bowes Finance Ltd,Large,1141146,21750,"Furniture, Fixtures & Fittings:Hire (Central Print Only)",Administration
Land Registry,Land Registry,08/03/2016,FF&F:Hire (Central Print Only),IS Service Delivery,Pitney Bowes Finance Ltd,Large,1141147,21750,"Furniture, Fixtures & Fittings:Hire (Central Print Only)",Administration
Land Registry,Land Registry,29/03/2016,Rates Payable,Governance & Policy,Plymouth City Council,Large,1141797,37275,Rates Payable,Administration
Land Registry,Land Registry,01/03/2016,Travel & Subsistence General Duty,Business Development,Redfern Travel Ltd,SME,1140507,1091.19,Travel & Subsistence,Administration
Land Registry,Land Registry,01/03/2016,Travel & Subsistence General Duty,Central Facilities Management Team,Redfern Travel Ltd,SME,1140507,1277.4,Travel & Subsistence,Administration
Land Registry,Land Registry,01/03/2016,Travel & Subsistence General Duty,Central Operations Group,Redfern Travel Ltd,SME,1140507,2392.95,Travel & Subsistence,Administration
Land Registry,Land Registry,01/03/2016,Travel & Subsistence General Duty,Chief Executives Office,Redfern Travel Ltd,SME,1140507,1511.8,Travel & Subsistence,Administration
Land Registry,Land Registry,01/03/2016,Travel & Subsistence General Duty,Commercial & Customer Strategy & Performance,Redfern Travel Ltd,SME,1140507,75.8,Travel & Subsistence,Administration
Land Registry,Land Registry,01/03/2016,Travel & Subsistence General Duty,Commercial Director,Redfern Travel Ltd,SME,1140507,82.4,Travel & Subsistence,Administration
Land Registry,Land Registry,01/03/2016,Travel & Subsistence General Duty,Corp Procurement,Redfern Travel Ltd,SME,1140507,439.6,Travel & Subsistence,Administration
Land Registry,Land Registry,01/03/2016,Travel & Subsistence General Duty,Corporate Assurance,Redfern Travel Ltd,SME,1140507,161.45,Travel & Subsistence,Administration
Land Registry,Land Registry,01/03/2016,Travel & Subsistence General Duty,Corporate Legal Services,Redfern Travel Ltd,SME,1140507,631.7,Travel & Subsistence,Administration
Land Registry,Land Registry,01/03/2016,Travel & Subsistence General Duty,Coventry Office,Redfern Travel Ltd,SME,1140507,12.8,Travel & Subsistence,Administration
Land Registry,Land Registry,01/03/2016,Travel & Subsistence General Duty,Croydon Office,Redfern Travel Ltd,SME,1140507,296.2,Travel & Subsistence,Administration
Land Registry,Land Registry,01/03/2016,Travel & Subsistence General Duty,Data Group,Redfern Travel Ltd,SME,1140507,982.65,Travel & Subsistence,Administration
Land Registry,Land Registry,01/03/2016,Travel & Subsistence General Duty,Dir: (Statutory) Digital Services,Redfern Travel Ltd,SME,1140507,2028.31,Travel & Subsistence,Administration
Land Registry,Land Registry,01/03/2016,Travel & Subsistence General Duty,Dir: Operations,Redfern Travel Ltd,SME,1140507,918.8,Travel & Subsistence,Administration
Land Registry,Land Registry,01/03/2016,Travel & Subsistence General Duty,Director of Information Systems,Redfern Travel Ltd,SME,1140507,329.6,Travel & Subsistence,Administration
Land Registry,Land Registry,01/03/2016,Travel & Subsistence General Duty,Director of Operations,Redfern Travel Ltd,SME,1140507,115.53,Travel & Subsistence,Administration
Land Registry,Land Registry,01/03/2016,Travel & Subsistence General Duty,Durham Office,Redfern Travel Ltd,SME,1140507,442.48,Travel & Subsistence,Administration
Land Registry,Land Registry,01/03/2016,Travel & Subsistence General Duty,Finance Director,Redfern Travel Ltd,SME,1140507,249,Travel & Subsistence,Administration
Land Registry,Land Registry,01/03/2016,Travel & Subsistence General Duty,Finance Group,Redfern Travel Ltd,SME,1140507,119.6,Travel & Subsistence,Administration
Land Registry,Land Registry,01/03/2016,Travel & Subsistence General Duty,Guarantee & Litigation,Redfern Travel Ltd,SME,1140507,245.1,Travel & Subsistence,Administration
Land Registry,Land Registry,01/03/2016,Travel & Subsistence General Duty,HR Group,Redfern Travel Ltd,SME,1140507,5079.35,Travel & Subsistence,Administration
Land Registry,Land Registry,01/03/2016,Travel & Subsistence General Duty,Internal Solutions Group,Redfern Travel Ltd,SME,1140507,2730.86,Travel & Subsistence,Administration
Land Registry,Land Registry,01/03/2016,Travel & Subsistence General Duty,International Unit,Redfern Travel Ltd,SME,1140507,937.82,Travel & Subsistence,Administration
Land Registry,Land Registry,01/03/2016,Travel & Subsistence General Duty,IS Service Delivery,Redfern Travel Ltd,SME,1140507,1835.7,Travel & Subsistence,Administration
Land Registry,Land Registry,01/03/2016,Travel & Subsistence General Duty,Leicester Office,Redfern Travel Ltd,SME,1140507,40.8,Travel & Subsistence,Administration
Land Registry,Land Registry,01/03/2016,Travel & Subsistence General Duty,Local Land Charges,Redfern Travel Ltd,SME,1140507,3410.41,Travel & Subsistence,Administration
Land Registry,Land Registry,01/03/2016,Travel & Subsistence General Duty,Local Lawyer Group,Redfern Travel Ltd,SME,1140507,509.2,Travel & Subsistence,Administration
Land Registry,Land Registry,01/03/2016,Travel & Subsistence General Duty,LR Board & Board Chair,Redfern Travel Ltd,SME,1140507,63.3,Travel & Subsistence,Administration
Land Registry,Land Registry,01/03/2016,Travel & Subsistence General Duty,LR Connect Portfolio,Redfern Travel Ltd,SME,1140507,1311.9,Travel & Subsistence,Administration
Land Registry,Land Registry,01/03/2016,Travel & Subsistence General Duty,Marketing Services Team,Redfern Travel Ltd,SME,1140507,56.5,Travel & Subsistence,Administration
Land Registry,Land Registry,01/03/2016,Travel & Subsistence General Duty,Nottingham Office,Redfern Travel Ltd,SME,1140507,519.85,Travel & Subsistence,Administration
Land Registry,Land Registry,01/03/2016,Travel & Subsistence General Duty,Plymouth Office,Redfern Travel Ltd,SME,1140507,139.1,Travel & Subsistence,Administration
Land Registry,Land Registry,01/03/2016,Travel & Subsistence General Duty,Product Development & Management,Redfern Travel Ltd,SME,1140507,178.6,Travel & Subsistence,Administration
Land Registry,Land Registry,01/03/2016,Travel & Subsistence General Duty,Program: Local Land Charges,Redfern Travel Ltd,SME,1140507,1358.8,Travel & Subsistence,Administration
Land Registry,Land Registry,01/03/2016,Travel & Subsistence General Duty,Projects and Programme Centre,Redfern Travel Ltd,SME,1140507,667.45,Travel & Subsistence,Administration
Land Registry,Land Registry,01/03/2016,Travel & Subsistence General Duty,Property Asset Management Group,Redfern Travel Ltd,SME,1140507,521.5,Travel & Subsistence,Administration
Land Registry,Land Registry,01/03/2016,Travel & Subsistence General Duty,Research & Data Mining,Redfern Travel Ltd,SME,1140507,476.7,Travel & Subsistence,Administration
Land Registry,Land Registry,01/03/2016,Travel & Subsistence General Duty,Strategy Team,Redfern Travel Ltd,SME,1140507,105.7,Travel & Subsistence,Administration
Land Registry,Land Registry,01/03/2016,Travel & Subsistence General Duty,Technology Group,Redfern Travel Ltd,SME,1140507,544.8,Travel & Subsistence,Administration
Land Registry,Land Registry,01/03/2016,Travel & Subsistence General Duty,Wales Office,Redfern Travel Ltd,SME,1140507,136.4,Travel & Subsistence,Administration
Land Registry,Land Registry,01/03/2016,Travel & Subsistence General Duty,Weymouth Office,Redfern Travel Ltd,SME,1140507,97.6,Travel & Subsistence,Administration
Land Registry,Land Registry,01/03/2016,Travel & Subsistence General Duty,Survey & Mapping Services,Redfern Travel Ltd,SME,1140507,223.1,Travel & Subsistence,Administration
Land Registry,Land Registry,01/03/2016,Travel & Subsistence General Duty,National Lawyer Training,Redfern Travel Ltd,SME,1140507,95.4,Travel & Subsistence,Administration
Land Registry,Land Registry,11/03/2016,Travel & Subsistence General Duty,Birkenhead Office,Redfern Travel Ltd,SME,1141615,725,Travel & Subsistence,Administration
Land Registry,Land Registry,11/03/2016,Travel & Subsistence General Duty,Business Development,Redfern Travel Ltd,SME,1141615,248.8,Travel & Subsistence,Administration
Land Registry,Land Registry,11/03/2016,Travel & Subsistence General Duty,Central Facilities Management Team,Redfern Travel Ltd,SME,1141615,1092.85,Travel & Subsistence,Administration
Land Registry,Land Registry,11/03/2016,Travel & Subsistence General Duty,Central Operations Group,Redfern Travel Ltd,SME,1141615,2093.77,Travel & Subsistence,Administration
Land Registry,Land Registry,11/03/2016,Travel & Subsistence General Duty,Chief Executives Office,Redfern Travel Ltd,SME,1141615,410.8,Travel & Subsistence,Administration
Land Registry,Land Registry,11/03/2016,Travel & Subsistence General Duty,Commercial Director,Redfern Travel Ltd,SME,1141615,148.59,Travel & Subsistence,Administration
Land Registry,Land Registry,11/03/2016,Travel & Subsistence General Duty,Corp Procurement,Redfern Travel Ltd,SME,1141615,208.4,Travel & Subsistence,Administration
Land Registry,Land Registry,11/03/2016,Travel & Subsistence General Duty,Corporate Assurance,Redfern Travel Ltd,SME,1141615,166,Travel & Subsistence,Administration
Land Registry,Land Registry,11/03/2016,Travel & Subsistence General Duty,Corporate Legal Services,Redfern Travel Ltd,SME,1141615,381.3,Travel & Subsistence,Administration
Land Registry,Land Registry,11/03/2016,Travel & Subsistence General Duty,Coventry Office,Redfern Travel Ltd,SME,1141615,74.6,Travel & Subsistence,Administration
Land Registry,Land Registry,11/03/2016,Travel & Subsistence General Duty,Croydon Office,Redfern Travel Ltd,SME,1141615,1016.6,Travel & Subsistence,Administration
Land Registry,Land Registry,11/03/2016,Travel & Subsistence General Duty,Data Group,Redfern Travel Ltd,SME,1141615,877.2,Travel & Subsistence,Administration
Land Registry,Land Registry,11/03/2016,Travel & Subsistence General Duty,Dir: (Statutory) Digital Services,Redfern Travel Ltd,SME,1141615,3163.21,Travel & Subsistence,Administration
Land Registry,Land Registry,11/03/2016,Travel & Subsistence General Duty,Dir: Operations,Redfern Travel Ltd,SME,1141615,446.2,Travel & Subsistence,Administration
Land Registry,Land Registry,11/03/2016,Travel & Subsistence General Duty,Director of Information Systems,Redfern Travel Ltd,SME,1141615,549.9,Travel & Subsistence,Administration
Land Registry,Land Registry,11/03/2016,Travel & Subsistence General Duty,Director of Legal Services,Redfern Travel Ltd,SME,1141615,722.5,Travel & Subsistence,Administration
Land Registry,Land Registry,11/03/2016,Travel & Subsistence General Duty,Director of Operations,Redfern Travel Ltd,SME,1141615,155.94,Travel & Subsistence,Administration
Land Registry,Land Registry,11/03/2016,Travel & Subsistence General Duty,Durham Office,Redfern Travel Ltd,SME,1141615,199.9,Travel & Subsistence,Administration
Land Registry,Land Registry,11/03/2016,Travel & Subsistence General Duty,Finance Director,Redfern Travel Ltd,SME,1141615,402.2,Travel & Subsistence,Administration
Land Registry,Land Registry,11/03/2016,Travel & Subsistence General Duty,Finance Group,Redfern Travel Ltd,SME,1141615,56.73,Travel & Subsistence,Administration
Land Registry,Land Registry,11/03/2016,Travel & Subsistence General Duty,Fylde Office,Redfern Travel Ltd,SME,1141615,3.9,Travel & Subsistence,Administration
Land Registry,Land Registry,11/03/2016,Travel & Subsistence General Duty,Governance & Policy,Redfern Travel Ltd,SME,1141615,0.6,Travel & Subsistence,Administration
Land Registry,Land Registry,11/03/2016,Travel & Subsistence General Duty,Guarantee & Litigation,Redfern Travel Ltd,SME,1141615,226.9,Travel & Subsistence,Administration
Land Registry,Land Registry,11/03/2016,Travel & Subsistence General Duty,HR Group,Redfern Travel Ltd,SME,1141615,3121.55,Travel & Subsistence,Administration
Land Registry,Land Registry,11/03/2016,Travel & Subsistence General Duty,Internal Solutions Group,Redfern Travel Ltd,SME,1141615,1124.1,Travel & Subsistence,Administration
Land Registry,Land Registry,11/03/2016,Travel & Subsistence General Duty,International Unit,Redfern Travel Ltd,SME,1141615,-84.5,Travel & Subsistence,Administration
Land Registry,Land Registry,11/03/2016,Travel & Subsistence General Duty,IS Service Delivery,Redfern Travel Ltd,SME,1141615,2698.68,Travel & Subsistence,Administration
Land Registry,Land Registry,11/03/2016,Travel & Subsistence General Duty,Leicester Office,Redfern Travel Ltd,SME,1141615,137.6,Travel & Subsistence,Administration
Land Registry,Land Registry,11/03/2016,Travel & Subsistence General Duty,Local Land Charges,Redfern Travel Ltd,SME,1141615,2150.63,Travel & Subsistence,Administration
Land Registry,Land Registry,11/03/2016,Travel & Subsistence General Duty,Local Lawyer Group,Redfern Travel Ltd,SME,1141615,632.9,Travel & Subsistence,Administration
Land Registry,Land Registry,11/03/2016,Travel & Subsistence General Duty,LR Board & Board Chair,Redfern Travel Ltd,SME,1141615,9.32,Travel & Subsistence,Administration
Land Registry,Land Registry,11/03/2016,Travel & Subsistence General Duty,LR Connect Portfolio,Redfern Travel Ltd,SME,1141615,1294.5,Travel & Subsistence,Administration
Land Registry,Land Registry,11/03/2016,Travel & Subsistence General Duty,Nottingham Office,Redfern Travel Ltd,SME,1141615,76.6,Travel & Subsistence,Administration
Land Registry,Land Registry,11/03/2016,Travel & Subsistence General Duty,Peterborough Office,Redfern Travel Ltd,SME,1141615,15,Travel & Subsistence,Administration
Land Registry,Land Registry,11/03/2016,Travel & Subsistence General Duty,Product Development & Management,Redfern Travel Ltd,SME,1141615,111,Travel & Subsistence,Administration
Land Registry,Land Registry,11/03/2016,Travel & Subsistence General Duty,Prog: Digital by Default,Redfern Travel Ltd,SME,1141615,1.2,Travel & Subsistence,Administration
Land Registry,Land Registry,11/03/2016,Travel & Subsistence General Duty,Prog: IT Foundations,Redfern Travel Ltd,SME,1141615,0.6,Travel & Subsistence,Administration
Land Registry,Land Registry,11/03/2016,Travel & Subsistence General Duty,Program: Local Land Charges,Redfern Travel Ltd,SME,1141615,1876.9,Travel & Subsistence,Administration
Land Registry,Land Registry,11/03/2016,Travel & Subsistence General Duty,Projects and Programme Centre,Redfern Travel Ltd,SME,1141615,276.4,Travel & Subsistence,Administration
Land Registry,Land Registry,11/03/2016,Travel & Subsistence General Duty,Property Asset Management Group,Redfern Travel Ltd,SME,1141615,839.1,Travel & Subsistence,Administration
Land Registry,Land Registry,11/03/2016,Travel & Subsistence General Duty,Research & Data Mining,Redfern Travel Ltd,SME,1141615,700.8,Travel & Subsistence,Administration
Land Registry,Land Registry,11/03/2016,Travel & Subsistence General Duty,Technology Group,Redfern Travel Ltd,SME,1141615,573.6,Travel & Subsistence,Administration
Land Registry,Land Registry,11/03/2016,Travel & Subsistence General Duty,Telford Office,Redfern Travel Ltd,SME,1141615,42.6,Travel & Subsistence,Administration
Land Registry,Land Registry,11/03/2016,Travel & Subsistence General Duty,Wales Office,Redfern Travel Ltd,SME,1141615,70.6,Travel & Subsistence,Administration
Land Registry,Land Registry,11/03/2016,Travel & Subsistence General Duty,Weymouth Office,Redfern Travel Ltd,SME,1141615,88.6,Travel & Subsistence,Administration
Land Registry,Land Registry,11/03/2016,Travel & Subsistence General Duty,Dir: Finance,Redfern Travel Ltd,SME,1141615,282.2,Travel & Subsistence,Administration
Land Registry,Land Registry,11/03/2016,Travel & Subsistence General Duty,Survey & Mapping Services,Redfern Travel Ltd,SME,1141615,313,Travel & Subsistence,Administration
Land Registry,Land Registry,22/03/2016,Travel & Subsistence General Duty,Birkenhead Office,Redfern Travel Ltd,SME,1142682,797.5,Travel & Subsistence,Administration
Land Registry,Land Registry,22/03/2016,Travel & Subsistence General Duty,Business Development,Redfern Travel Ltd,SME,1142682,750.75,Travel & Subsistence,Administration
Land Registry,Land Registry,22/03/2016,Travel & Subsistence General Duty,Central Facilities Management Team,Redfern Travel Ltd,SME,1142682,1318.79,Travel & Subsistence,Administration
Land Registry,Land Registry,22/03/2016,Travel & Subsistence General Duty,Central Operations Group,Redfern Travel Ltd,SME,1142682,2566.5,Travel & Subsistence,Administration
Land Registry,Land Registry,22/03/2016,Travel & Subsistence General Duty,Chief Executives Office,Redfern Travel Ltd,SME,1142682,1126.1,Travel & Subsistence,Administration
Land Registry,Land Registry,22/03/2016,Travel & Subsistence General Duty,Commercial & Customer Strategy & Performance,Redfern Travel Ltd,SME,1142682,173,Travel & Subsistence,Administration
Land Registry,Land Registry,22/03/2016,Travel & Subsistence General Duty,Commercial Director,Redfern Travel Ltd,SME,1142682,184.7,Travel & Subsistence,Administration
Land Registry,Land Registry,22/03/2016,Travel & Subsistence General Duty,Corp Procurement,Redfern Travel Ltd,SME,1142682,832.35,Travel & Subsistence,Administration
Land Registry,Land Registry,22/03/2016,Travel & Subsistence General Duty,Corporate Assurance,Redfern Travel Ltd,SME,1142682,418.19,Travel & Subsistence,Administration
Land Registry,Land Registry,22/03/2016,Travel & Subsistence General Duty,Corporate Legal Services,Redfern Travel Ltd,SME,1142682,666.2,Travel & Subsistence,Administration
Land Registry,Land Registry,22/03/2016,Travel & Subsistence General Duty,Coventry Office,Redfern Travel Ltd,SME,1142682,18.2,Travel & Subsistence,Administration
Land Registry,Land Registry,22/03/2016,Travel & Subsistence General Duty,Croydon Office,Redfern Travel Ltd,SME,1142682,1390.9,Travel & Subsistence,Administration
Land Registry,Land Registry,22/03/2016,Travel & Subsistence General Duty,Data Group,Redfern Travel Ltd,SME,1142682,439,Travel & Subsistence,Administration
Land Registry,Land Registry,22/03/2016,Travel & Subsistence General Duty,Dir: (Statutory) Digital Services,Redfern Travel Ltd,SME,1142682,3499.73,Travel & Subsistence,Administration
Land Registry,Land Registry,22/03/2016,Travel & Subsistence General Duty,Dir: Operations,Redfern Travel Ltd,SME,1142682,951.9,Travel & Subsistence,Administration
Land Registry,Land Registry,22/03/2016,Travel & Subsistence General Duty,Director of Information Systems,Redfern Travel Ltd,SME,1142682,104.4,Travel & Subsistence,Administration
Land Registry,Land Registry,22/03/2016,Travel & Subsistence General Duty,Director of Legal Services,Redfern Travel Ltd,SME,1142682,646.1,Travel & Subsistence,Administration
Land Registry,Land Registry,22/03/2016,Travel & Subsistence General Duty,Director of Operations,Redfern Travel Ltd,SME,1142682,0.6,Travel & Subsistence,Administration
Land Registry,Land Registry,22/03/2016,Travel & Subsistence General Duty,Durham Office,Redfern Travel Ltd,SME,1142682,-120.8,Travel & Subsistence,Administration
Land Registry,Land Registry,22/03/2016,Travel & Subsistence General Duty,Finance Director,Redfern Travel Ltd,SME,1142682,543.5,Travel & Subsistence,Administration
Land Registry,Land Registry,22/03/2016,Travel & Subsistence General Duty,Finance Group,Redfern Travel Ltd,SME,1142682,402.35,Travel & Subsistence,Administration
Land Registry,Land Registry,22/03/2016,Travel & Subsistence General Duty,Fylde Office,Redfern Travel Ltd,SME,1142682,442,Travel & Subsistence,Administration
Land Registry,Land Registry,22/03/2016,Travel & Subsistence General Duty,Gloucester Office,Redfern Travel Ltd,SME,1142682,39.4,Travel & Subsistence,Administration
Land Registry,Land Registry,22/03/2016,Travel & Subsistence General Duty,Guarantee & Litigation,Redfern Travel Ltd,SME,1142682,178.5,Travel & Subsistence,Administration
Land Registry,Land Registry,22/03/2016,Travel & Subsistence General Duty,HR Group,Redfern Travel Ltd,SME,1142682,4040.4,Travel & Subsistence,Administration
Land Registry,Land Registry,22/03/2016,Travel & Subsistence General Duty,Hull Office,Redfern Travel Ltd,SME,1142682,57.1,Travel & Subsistence,Administration
Land Registry,Land Registry,22/03/2016,Travel & Subsistence General Duty,Internal Solutions Group,Redfern Travel Ltd,SME,1142682,2410.13,Travel & Subsistence,Administration
Land Registry,Land Registry,22/03/2016,Travel & Subsistence General Duty,International Unit,Redfern Travel Ltd,SME,1142682,631.3,Travel & Subsistence,Administration
Land Registry,Land Registry,22/03/2016,Travel & Subsistence General Duty,IS Service Delivery,Redfern Travel Ltd,SME,1142682,1160.14,Travel & Subsistence,Administration
Land Registry,Land Registry,22/03/2016,Travel & Subsistence General Duty,Leicester Office,Redfern Travel Ltd,SME,1142682,11.8,Travel & Subsistence,Administration
Land Registry,Land Registry,22/03/2016,Travel & Subsistence General Duty,Local Land Charges,Redfern Travel Ltd,SME,1142682,5060.04,Travel & Subsistence,Administration
Land Registry,Land Registry,22/03/2016,Travel & Subsistence General Duty,Local Lawyer Group,Redfern Travel Ltd,SME,1142682,605.97,Travel & Subsistence,Administration
Land Registry,Land Registry,22/03/2016,Travel & Subsistence General Duty,LR Board & Board Chair,Redfern Travel Ltd,SME,1142682,379.4,Travel & Subsistence,Administration
Land Registry,Land Registry,22/03/2016,Travel & Subsistence General Duty,LR Connect Portfolio,Redfern Travel Ltd,SME,1142682,1700.65,Travel & Subsistence,Administration
Land Registry,Land Registry,22/03/2016,Travel & Subsistence General Duty,Marketing Services Team,Redfern Travel Ltd,SME,1142682,88.8,Travel & Subsistence,Administration
Land Registry,Land Registry,22/03/2016,Travel & Subsistence General Duty,Nottingham Office,Redfern Travel Ltd,SME,1142682,372.7,Travel & Subsistence,Administration
Land Registry,Land Registry,22/03/2016,Travel & Subsistence General Duty,Peterborough Office,Redfern Travel Ltd,SME,1142682,70,Travel & Subsistence,Administration
Land Registry,Land Registry,22/03/2016,Travel & Subsistence General Duty,Plymouth Office,Redfern Travel Ltd,SME,1142682,68.6,Travel & Subsistence,Administration
Land Registry,Land Registry,22/03/2016,Travel & Subsistence General Duty,Product Development & Management,Redfern Travel Ltd,SME,1142682,247,Travel & Subsistence,Administration
Land Registry,Land Registry,22/03/2016,Travel & Subsistence General Duty,Prog: Digital by Default,Redfern Travel Ltd,SME,1142682,83.3,Travel & Subsistence,Administration
Land Registry,Land Registry,22/03/2016,Travel & Subsistence General Duty,Prog: IT Foundations,Redfern Travel Ltd,SME,1142682,526.4,Travel & Subsistence,Administration
Land Registry,Land Registry,22/03/2016,Travel & Subsistence General Duty,Program: Local Land Charges,Redfern Travel Ltd,SME,1142682,1498.1,Travel & Subsistence,Administration
Land Registry,Land Registry,22/03/2016,Travel & Subsistence General Duty,Projects and Programme Centre,Redfern Travel Ltd,SME,1142682,277.65,Travel & Subsistence,Administration
Land Registry,Land Registry,22/03/2016,Travel & Subsistence General Duty,Property Asset Management Group,Redfern Travel Ltd,SME,1142682,1112,Travel & Subsistence,Administration
Land Registry,Land Registry,22/03/2016,Travel & Subsistence General Duty,Research & Data Mining,Redfern Travel Ltd,SME,1142682,631.1,Travel & Subsistence,Administration
Land Registry,Land Registry,22/03/2016,Travel & Subsistence General Duty,Technology Group,Redfern Travel Ltd,SME,1142682,582.5,Travel & Subsistence,Administration
Land Registry,Land Registry,22/03/2016,Travel & Subsistence General Duty,Dir: Finance,Redfern Travel Ltd,SME,1142682,474.7,Travel & Subsistence,Administration
Land Registry,Land Registry,22/03/2016,Travel & Subsistence General Duty,HR Operations,Redfern Travel Ltd,SME,1142682,150.8,Travel & Subsistence,Administration
Land Registry,Land Registry,22/03/2016,Travel & Subsistence General Duty,Independent Complaints Reviewer,Redfern Travel Ltd,SME,1142682,74.31,Travel & Subsistence,Administration
Land Registry,Land Registry,22/03/2016,Travel & Subsistence General Duty,Registration Legal Services Group,Redfern Travel Ltd,SME,1142682,231.45,Travel & Subsistence,Administration
Land Registry,Land Registry,15/03/2016,Letter Post,Birkenhead Office,Royal Mail,Large,1141979,1878.43,Letter Post,Administration
Land Registry,Land Registry,15/03/2016,Letter Post,Coventry Office,Royal Mail,Large,1141979,2406.8,Letter Post,Administration
Land Registry,Land Registry,15/03/2016,Letter Post,Croydon Office,Royal Mail,Large,1141979,2781.51,Letter Post,Administration
Land Registry,Land Registry,15/03/2016,Letter Post,Durham Office,Royal Mail,Large,1141979,5712.28,Letter Post,Administration
Land Registry,Land Registry,15/03/2016,Letter Post,Fylde Office,Royal Mail,Large,1141979,2775.81,Letter Post,Administration
Land Registry,Land Registry,15/03/2016,Letter Post,Gloucester Office,Royal Mail,Large,1141979,1519.12,Letter Post,Administration
Land Registry,Land Registry,15/03/2016,Letter Post,Hull Office,Royal Mail,Large,1141979,2441.46,Letter Post,Administration
Land Registry,Land Registry,15/03/2016,Letter Post,IS Service Delivery,Royal Mail,Large,1141979,19439.11,Letter Post,Administration
Land Registry,Land Registry,15/03/2016,Letter Post,Land Charges,Royal Mail,Large,1141979,726.54,Letter Post,Administration
Land Registry,Land Registry,15/03/2016,Letter Post,Leicester Office,Royal Mail,Large,1141979,1496.66,Letter Post,Administration
Land Registry,Land Registry,15/03/2016,Letter Post,Nottingham Office,Royal Mail,Large,1141979,2527.83,Letter Post,Administration
Land Registry,Land Registry,15/03/2016,Letter Post,Peterborough Office,Royal Mail,Large,1141979,1706.22,Letter Post,Administration
Land Registry,Land Registry,15/03/2016,Letter Post,Plymouth Office,Royal Mail,Large,1141979,2179.6,Letter Post,Administration
Land Registry,Land Registry,15/03/2016,Letter Post,Telford Office,Royal Mail,Large,1141979,1169.57,Letter Post,Administration
Land Registry,Land Registry,15/03/2016,Letter Post,Wales Office,Royal Mail,Large,1141979,12420.23,Letter Post,Administration
Land Registry,Land Registry,15/03/2016,Letter Post,Weymouth Office,Royal Mail,Large,1141979,1492.38,Letter Post,Administration
Land Registry,Land Registry,24/03/2016,Major Property Maintenance Projects,Central Facilities Management Team,Sitec Building and Maintenance Ltd,SME,1140883,101085.52,Major Property Maintenance Projects,Administration
Land Registry,Land Registry,24/03/2016,Assets in the Course of Construction,Balance Sheet,Software Box Ltd,SME,1141798,205117.44,Assets in the Course of Construction,Administration
Land Registry,Land Registry,24/03/2016,Computer Equipment Maintenance,Dir: (Statutory) Digital Services,Software Box Ltd,SME,1141798,36934.47,Computer Equipment Maintenance,Administration
Land Registry,Land Registry,29/03/2016,Rates Payable,RFS11 - Plymouth,South Hams District Council,Large,1142550,8055,Rates Payable,Administration
Land Registry,Land Registry,29/03/2016,Rates Payable,Governance & Policy,South Hams District Council,Large,1142551,4599.5,Rates Payable,Administration
Land Registry,Land Registry,15/03/2016,Fixed Asset Interface Account,Balance Sheet,Specialist Computer Centres Plc - SCC,Large,1141905,106755.04,Fixed Assets,Administration
Land Registry,Land Registry,15/03/2016,Computer Equipment Maintenance,IS Service Delivery,Specialist Computer Centres Plc - SCC,Large,1141905,10580.2,Computer Equipment Maintenance,Administration
Land Registry,Land Registry,29/03/2016,Rates Payable,Telford Office,Telford & Wrekin Council,Large,1142855,25591,Rates Payable,Administration
Land Registry,Land Registry,29/03/2016,Rates Payable,Gloucester Computer Centre,Tewkesbury Borough Council,Large,1140892,11881,Rates Payable,Administration
Land Registry,Land Registry,04/03/2016,Maps & Plans Data Migration,Forward Scanning,TNT (UK) Ltd,Large,1140882,181436.92,Maps & Plans Data Migration,Administration
Land Registry,Land Registry,22/03/2016,RFS Outsourced Services,Central RFS,TNT (UK) Ltd,Large,1142674,111006.68,Regional File Store Outsourced Services,Administration
Land Registry,Land Registry,22/03/2016,RFS Outsourced Services,Central RFS,TNT (UK) Ltd,Large,1142675,189645.45,Regional File Store Outsourced Services,Administration
Land Registry,Land Registry,15/03/2016,Computer Equipment Maintenance,IS Service Delivery,Vanguard Integrity Professionals Ltd,Large,1141773,26613,Computer Equipment Maintenance,Administration
